Workbook

Sheet Acceuil
E7: COMITE INTERMINISTERIEL DE PILOTAGE DE LA POLITIQUE NATIONALE DE DECENTRALISATION ET DE DECONCENTRATION (CIP-PONADEC)
E8: SECRETARIAT PERMANENT
E10: Calcul de l'Indice de bonne Gouvernance Locale (IGL)
F12: Département | G12: LITTORAL | I12: Commune | J12: COTONOU | O12: Année : | P12: 2022
E17: Informations à saisir par catégorie
G19: Budget | L19: Cadres de Concertation
G20: Conseil Communal | L20: Tutelle
G21: Conseil d'Arrondissement | L21: Marchés
G22: Conseil de Village | L22: Services délégués
G23: Commissions Permanentes | L23: Autres données

Sheet Budget
A1: Retour à l'accueil
A2: Prévision | D2: Réalisation | K2: Autres données financieres
A3: Montant du budget | B3: Recette fiscales | C3: PAI | D3: Dépenses d'investissement | G3: Dépenses totales de fonctionnement | H3: Dépenses d'entretien des équipements et ouvrages | I3: Recettes fiscales | J3: PAI | K3: Montant des ressources propres de l'année 2021 | L3: Montant des ressources propres de l'année 2022 | M3: Montant des cotisations versées à échéance (Intercommunalité et Association de communes) | N3: Montant des cotisations dues à échéance (Intercommunalité et Association de communes)
D4: Ressources propres (Auto financement) | E4: Investissement provenant de la coopération décentralisée | F4: Autres ressources
A5: 82444266814 | B5: 15547245641 | C5: 65894529433 | D5: 9168488883 | G5: 8227874909 | H5: 736582390 | I5: 14493074261 | J5: 5813172809 | K5: 18185791147 | L5: 16273607353 | M5: 17000000

Sheet CC
A1: Retour à l'accueil
A2: Tenue des Sessions ordinaires
A3: Nombre de réunions de municipalité tenues | D3: 2
A4: Nombre d'élus du Conseil Communal | D4: 49
A5: Sessions | B5: Nombre d'élus présents | C5: Date début session | D5: Date fin session | E5: Date affichage relevé session | F5: Production du rapport d'activités du Maire | H5: dif | I5: delai
A6: Session N°1 | H6: =IF(OR(D6="",E6=""),-1,DATEDIF(D6,E6,"d")) -> -1 | I6: =IF(OR(H6<0,H6>8),0,1) -> 0
A7: Session N°2 | B7: 46 | C7: 2022-04-29 | D7: 2022-05-03 | E7: 2022-05-06 | F7: OUI | H7: =IF(OR(D7="",E7=""),-1,DATEDIF(D7,E7,"d")) -> 3 | I7: =IF(OR(H7<0,H7>8),0,1) -> 1
A8: Session N°3 | B8: 47 | C8: 2022-07-27 | D8: 2022-07-28 | E8: 2022-08-03 | F8: OUI | H8: =IF(OR(D8="",E8=""),-1,DATEDIF(D8,E8,"d")) -> 6 | I8: =IF(OR(H8<0,H8>8),0,1) -> 1
A9: Session N°4 | B9: 41 | C9: 2022-11-10 | D9: 2022-11-11 | E9: 2022-11-16 | F9: OUI | H9: =IF(OR(D9="",E9=""),-1,DATEDIF(D9,E9,"d")) -> 5 | I9: =IF(OR(H9<0,H9>8),0,1) -> 1

Sheet CA
A1: Retour à l'accueil
A2: Arrondissements | B2: Nombre de sessions de conseils d’arrondissement tenues
A3: 1ER ARRONDISSEMENT | B3: 24
A4: 2EME ARRONDISSEMENT | B4: 18
A5: 3EME ARRONDISSEMENT | B5: 18
A6: 4EME ARRONDISSEMENT | B6: 12
A7: 5EME ARRONDISSEMENT | B7: 13
A8: 6EME ARRONDISSEMENT | B8: 13
A9: 7EME ARRONDISSEMENT | B9: 18
A10: 8EME ARRONDISSEMENT | B10: 12
A11: 9EME ARRONDISSEMENT | B11: 17
A12: 10EME ARRONDISSEMENT | B12: 12
A13: 11EME ARRONDISSEMENT | B13: 12
A14: 12EME ARRONDISSEMENT | B14: 13
A15: 13EME ARRONDISSEMENT | B15: 16

Sheet CV
A1: Retour à l'accueil
A2: Arrondissements | B2: Villages | C2: Nombre de réunions de conseils de village tenues au cours de l’année | D2: Section Villagoise\urbaine de Gestion Fonctiere (SVGF et SUGF)
D3: Enquetes Publiques Contradictoires (EPC)
D4: Nombre de demandes effectuées | E4: Nombre de demandes réalisées
A5: 1ER ARRONDISSEMENT | B5: AVOTROU AIMONLONFIDE | C5: 3
B6: AVOTROU GBEGO | C6: 3
B7: AVOTROU HOUEZEKOME | C7: 4
B8: DANDJI | C8: 5
B9: DANDJI HOKANME | C9: 6
B10: DONATEN | C10: 6
B11: FINAGNON | C11: 6
B12: N'VENAMEDE | C12: 3
B13: SURU LERE | C13: 8
B14: TANTO | C14: 8
B15: TCHANHOUNKPAME | C15: 3
B16: TOKPLEGBE | C16: 4
B17: YAGBE | C17: 7
A18: 2EME ARRONDISSEMENT | B18: AHOUASSA | C18: 1
B19: DJEDJE-LAYE | C19: 6
B20: GANKPODO | C20: 3
B21: IREDE | C21: 7
B22: KOWEGBO | C22: 7
B23: KPONDEHOU | C23: 0
B24: KPONDEHOU TCHEMEI | C24: 8
B25: LOM-NAVA | C25: 6
B26: MINONTCHOU | C26: 7
B27: SENADE SEKOU | C27: 5
B28: SENANDE | C28: 7
B29: YENAWA | C29: 7
B30: YENAWA DAHO | C30: 4
A31: 3EME ARRONDISSEMENT | B31: ADJEGOUNLE | C31: 8
B32: ADOGLETA | C32: 3
B33: AGBATO | C33: 4
B34: AGBODJEDO | C34: 4
B35: AYELAWADJE | C35: 8
B36: AYELAWADJE AGONGOME | C36: 8
B37: FIFATIN | C37: 7
B38: GBENONKPO | C38: 7
B39: HLACOMEY | C39: 6
B40: KPANKPAN | C40: 7
B41: MIDOMBO | C41: 7
B42: SEGBEYA NORD | C42: 7
B43: SEGBEYA SUD | C43: 8
A44: 4EME ARRONDISSEMENT | B44: ABOKICODJI CENTRE | C44: 4
B45: ABOKICODJI LAGUNE | C45: 4
B46: AKPAKPA DODOME | C46: 4
B47: DEDOKPO | C47: 4
B48: ENAGNON | C48: 4
B49: FIFADJI HOUTO | C49: 4
B50: GBEDJEWIN | C50: 4
B51: MISSESSIN | C51: 4
B52: OHE | C52: 4
B53: SODJEATINME CENTRE | C53: 4
B54: SODJEATINME EST | C54: 4
B55: SODJEATINME OUEST | C55: 3
A56: 5EME ARRONDISSEMENT | B56: AVLEKETE JONQUET | C56: 4
B57: BOCOSSI TOKPA | C57: 3
B58: DOTA | C58: 2
B59: GBEDOKPO | C59: 8
B60: GBETO | C60: 4
B61: GUINKOMEY | C61: 3
B62: MIFONGOU | C62: 8
B63: MISSEBO | C63: 5
B64: MISSITE | C64: 7
B65: NOUVEAU PONT | C65: 6
B66: TOKPA HOHO | C66: 4
B67: XWLACODJI KPODJI | C67: 3
B68: XWLACODJI PLAGE | C68: 0
B69: ZONGO EHUZU | C69: 2
B70: ZONGO NIMA | C70: 0
A71: 6EME ARRONDISSEMENT | B71: AHOUANSORI AGATA | C71: 0
B72: AHOUANSORI AGUE | C72: 2
B73: AHOUANSORI LADJI | C73: 4
B74: AHOUANSORI TOWETA | C74: 4
B75: AHOUANSORI TOWETA KPOTAI | C75: 6
B76: AIDJEDO | C76: 4
B77: AIDJEDO AHITO | C77: 6
B78: AIDJEDO GBEGO | C78: 6
B79: AIDJEDO VIGNON | C79: 2
B80: DANTOKPA | C80: 2
B81: DJIDJE | C81: 0
B82: DJIDJE AICHEDJI | C82: 5
B83: GBEDJROMEDE | C83: 6
B84: GBEDJROMEDE SUD | C84: 5
B85: HINDE NORD | C85: 5
B86: HINDE SUD | C86: 0
B87: JERICHO NORD | C87: 6
B88: JERICHO SUD | C88: 6
B89: VOSSA | C89: 5
A90: 7EME ARRONDISSEMENT | B90: DAGBEDJI SIKE | C90: 3
B91: ENAGNON-SIKE | C91: 4
B92: FIGNON SIKE | C92: 4
B93: GBEDOMIDJI | C93: 7
B94: GBENAN | C94: 5
B95: GBEWA | C95: 0
B96: MISSITE-SIKE | C96: 5
B97: SEDAMI | C97: 3
B98: SEDJRO SAINT MICHEL | C98: 6
B99: SEHOGAN SIKE | C99: 4
B100: TODOTE | C100: 2
B101: YEVEDO | C101: 1
A102: 8EME ARRONDISSEMENT | B102: AGBODJEDO STE RITA | C102: 4
B103: AGONTINKON | C103: 4
B104: GBEDAGBA | C104: 4
B105: HOUEHOUN | C105: 4
B106: HOUENOUSSOU STE RITA | C106: 4
B107: MEDEDJRO | C107: 4
B108: MINONKPO WOLOGUEDE | C108: 4
B109: TONATO | C109: 4
A110: 9EME ARRONDISSEMENT | B110: FIFADJI | C110: 5
B111: KINDONOU | C111: 7
B112: MENONTIN | C112: 7
B113: VOSSA-KPODJI | C113: 8
B114: ZOGBO | C114: 6
B115: ZOGBOHOUE | C115: 7
A116: 10EME ARRONDISSEMENT | B116: AGOUNVOCODJI | C116: 4
B117: GBENONKPO | C117: 4
B118: KOUHOUNOU | C118: 3
B119: MIDEDJI | C119: 4
B120: MISSEKPLE | C120: 4
B121: MISSOGBE | C121: 4
B122: SETOVI | C122: 4
B123: VEDOKO | C123: 3
B124: YENAWA-FIFADJI | C124: 2
A125: 11EME ARRONDISSEMENT | B125: GBEDIGA GUEDEHOUNGUE | C125: 4
B126: GBEGAMEY AHITO | C126: 4
B127: GBEGAMEY CENTRE | C127: 4
B128: GBEGAMEY DODO AYIDJE | C128: 4
B129: GBEGAMEY GBAGOUDO | C129: 4
B130: GBEGAMEY MIFONGOU | C130: 4
B131: HOUEYIHO | C131: 4
B132: HOUEYIHO TANOU | C132: 4
B133: SAINT JEAN GBEDIGA | C133: 4
B134: VODJE ALLOBATIN | C134: 4
B135: VODJE AYIDOTE | C135: 4
B136: VODJE CENTRE | C136: 4
B137: VODJE FINAGNON | C137: 4
A138: 12EME ARRONDISSEMENT | B138: AHOUANLEKO | C138: 7
B139: AIBATIN DODO | C139: 7
B140: AKOGBATO | C140: 6
B141: CADJEHOUN AGONGA | C141: 5
B142: CADJEHOUN AUPIAIS | C142: 7
B143: CADJEHOUN AZALOKOGON | C143: 4
B144: CADJEHOUN DETINSA | C144: 7
B145: CADJEHOUN GARE | C145: 7
B146: CADJEHOUN KPOTA | C146: 7
B147: FIDJROSSE CENTRE | C147: 6
B148: FIDJROSSE KPOTA | C148: 2
B149: FIYEGNON HOUTA | C149: 2
B150: FIYEGNON JACQUOT | C150: 7
B151: GBODJETIN | C151: 4
B152: HAIE VIVE | C152: 0
B153: HLAZOUNTO | C153: 7
B154: LES COCOTIERS | C154: 0
B155: VODJE KPOTA | C155: 7
B156: YEMICODJI | C156: 4
A157: 13EME ARRONDISSEMENT | B157: AGLA AGONGBOMEY | C157: 4
B158: AGLA AKPLOMEY | C158: 7
B159: AGLA FIGARO | C159: 8
B160: AGLA LES PYLONES | C160: 6
B161: AGLA PETIT CHATEAU | C161: 5
B162: AGLA SUD | C162: 4
B163: AGLAFINAFA | C163: 0
B164: AHOGBOHOUE CITE DE L'EXPERIENCE | C164: 5
B165: AHOGBOHOUE CITE EUCARISTIE | C165: 5
B166: AIBATIN KPOTA | C166: 5
B167: CITE ADJAHA | C167: 7
B168: GBEDEGBE | C168: 6
B169: HOUENOUSSOU | C169: 5
B170: MISSITE | C170: 3

Sheet CP
A1: Retour à l'accueil
A2: Tenue des sessions ordinaires des commissions permanentes
A3: Commissions permanentes (CP) | B3: Nom de la commission | C3: Effectif des membres | D3: Réunion N°1 | G3: Réunion N°2 | J3: Réunion N°3 | M3: Réunion N°4 | P3: Réunion N°5 | S3: Réunion N°6 | V3: Réunion N°7 | Y3: Réunion N°8 | AB3: Réunion N°9 | AE3: Réunion N°10 | AH3: Réunion N°11 | AK3: Réunion N°12
D4: Nombre de membres presents | E4: Nombre de propositions faites | F4: Nombre de propositions réalisées par le Maire | G4: Nombre de membres presents | H4: Nombre de propositions faites | I4: Nombre de propositions réalisées par le Maire | J4: Nombre de membres presents | K4: Nombre de propositions faites | L4: Nombre de propositions réalisées par le Maire | M4: Nombre de membres presents | N4: Nombre de propositions faites | O4: Nombre de propositions réalisées par le Maire | P4: Nombre de membres presents | Q4: Nombre de propositions faites | R4: Nombre de propositions réalisées par le Maire | S4: Nombre de membres presents | T4: Nombre de propositions faites | U4: Nombre de propositions réalisées par le Maire | V4: Nombre de membres presents | W4: Nombre de propositions faites | X4: Nombre de propositions réalisées par le Maire | Y4: Nombre de membres presents | Z4: Nombre de propositions faites | AA4: Nombre de propositions réalisées par le Maire | AB4: Nombre de membres presents | AC4: Nombre de propositions faites | AD4: Nombre de propositions réalisées par le Maire | AE4: Nombre de membres presents | AF4: Nombre de propositions faites | AG4: Nombre de propositions réalisées par le Maire | AH4: Nombre de membres presents | AI4: Nombre de propositions faites | AJ4: Nombre de propositions réalisées par le Maire | AK4: Nombre de membres presents | AL4: Nombre de propositions faites | AM4: Nombre de propositions réalisées par le Maire
A5: CP N°1 | B5: Commission des Affaires Economiques et Financieres (CAEF) | AP5: =C5*COUNTA(D5,G5,J5,M5,S5,V5,Y5,AB5,AE5,AH5,AK5) -> 0
A6: CP N°2 | B6: Commission des Affaires Domaniales et Environnementales (CADE) | AP6: 0
A7: CP N°3 | B7: Commission des Affaires Sociales et Culturelles (CASC) | AP7: 0
A8: CP N°4 | AP8: 0
A9: CP N°5 | AP9: 0
A10: CP N°6 | AP10: 0
A11: CP N°7 | AP11: 0
A12: CP N°8 | AP12: 0
A13: CP N°9 | AP13: 0
A14: CP N°10 | AP14: 0
A15: Nombre | C15: =COUNT(C5:C14) -> 0 | D15: 0 | E15: 0 | F15: 0 | G15: 0 | H15: 0 | I15: 0 | J15: 0 | K15: 0 | L15: 0 | M15: 0 | N15: 0 | O15: 0 | P15: 0 | Q15: 0 | R15: 0 | S15: 0 | T15: 0 | U15: 0 | V15: 0 | W15: 0 | X15: 0 | Y15: 0 | Z15: 0 | AA15: 0 | AB15: 0 | AC15: 0 | AD15: 0 | AE15: 0 | AF15: 0 | AG15: 0 | AH15: 0 | AI15: 0 | AJ15: 0 | AK15: 0 | AL15: 0 | AM15: 0 | AP15: =SUM(AP5:AP14) -> 0
A16: Effectif | C16: =SUM(C5:C14) -> 0 | D16: 0 | E16: 0 | F16: 0 | G16: 0 | H16: 0 | I16: 0 | J16: 0 | K16: 0 | L16: 0 | M16: 0 | N16: 0 | O16: 0 | P16: 0 | Q16: 0 | R16: 0 | S16: 0 | T16: 0 | U16: 0 | V16: 0 | W16: 0 | X16: 0 | Y16: 0 | Z16: 0 | AA16: 0 | AB16: 0 | AC16: 0 | AD16: 0 | AE16: 0 | AF16: 0 | AG16: 0 | AH16: 0 | AI16: 0 | AJ16: 0 | AK16: 0 | AL16: 0 | AM16: 0

Sheet Cadres de Concertation
A1: Retour à l'accueil
A2: Tenue des Cadres de Concertation
A3: Mairie-SDE | F3: Autres Cadres
A4: Effectif des membres du Cadre de Concertation Mairie-SDE | C4: 0 | F4: Education | G4: Eau, Hygiène et Assainissement | H4: Agricole | I4: Maire et OSC | J4: Nutrition | K4: Sport | L4: Autres
A5: Nombre de sessions prévues | C5: 0
A6: Sessions | B6: Effectif présent | C6: Date | D6: Nombre de séances tenues | H6: 2 | I6: 1
A7: Session N°1
A8: Session N°2
A9: Session N°3
A10: Session N°4
A11: Session N°5
A12: Session N°6
A13: Session N°7
A14: Session N°8
A15: Session N°9
A16: Session N°10
A17: Session N°11
A18: Session N°12

Sheet Tutelle
A1: Retour à l'accueil
A2: Participation aux CDCC | E2: Budget communal (Budget primitif) | F2: Le budget est transmis ou pas. | H2: TRANSMIS
A3: Effectif (Maire et ses adjoints) | C3: 17 | F3: Date d'adoption du budget | H3: 2021-11-29
A4: Sessions | B4: Effectif présent | C4: Date début session | D4: Date fin session | F4: Date de transmission du budget à la tutelle | H4: 2021-12-01
A5: CDCC N°1 | B5: 16 | C5: 2022-01-27 | D5: 2022-01-27 | F5: Date d'approbation du budget par la tutelle | H5: 2021-12-31
A6: CDCC N°2 | B6: 4 | C6: 2022-11-14 | D6: 2022-11-14 | E6: Compte Administratif | F6: Le compte administratif est transmis ou pas. | H6: TRANSMIS
A7: Conformité des actes | F7: Date d'adoption du compte administratif de l'année 2021 | H7: 2022-06-10
A8: Nombre d’actes conformes | D8: 63 | F8: Date de transmission à la tutelle | H8: 2022-06-15
A9: Nombre d’actes soumis pour approbation | D9: 63 | F9: Date d'approbation du compte administratif par la tutelle | H9: 2022-06-30

Sheet Services Délégués
A1: Retour à l'accueil
A2: EAU | G2: ASSAINISSEMENT | S2: SERVICES MARCHANDS | AA2: PANNEAUX PUBLICITAIRES | AC2: TOTAL
A3: AEV | C3: FPM | E3: PEA | G3: Entretien des voies urbaines | I3: Eclairage public | K3: Collecte et traitement des déchets | M3: Evacuation des eaux usées | O3: Gestion des cimétieres | Q3: Gestion des espaces verts | S3: Gestion des marchés | U3: Gestion des abattoirs | W3: Promotion du tourisme | Y3: Gestions des gares routieres
A4: PREVUES | B4: DELEGUEES | C4: PREVUES | D4: DELEGUEES | E4: PREVUES | F4: DELEGUEES | G4: PREVUS | H4: DELEGUES | I4: PREVUS | J4: DELEGUES | K4: PREVUS | L4: DELEGUES | M4: PREVUS | N4: DELEGUES | O4: PREVUS | P4: DELEGUES | Q4: PREVUS | R4: DELEGUES | S4: PREVUS | T4: DELEGUES | U4: PREVUS | V4: DELEGUES | W4: PREVUS | X4: DELEGUES | Y4: PREVUS | Z4: DELEGUES | AA4: PREVUS | AB4: DELEGUES | AC4: PREVUS | AD4: DELEGUES
A5: 0 | B5: 0 | C5: 0 | D5: 0 | E5: 0 | F5: 0 | G5: 0 | H5: 0 | I5: 0 | J5: 0 | K5: 0 | L5: 0 | M5: 0 | N5: 0 | O5: 2 | P5: 0 | Q5: 2 | R5: 0 | S5: 32 | T5: 0 | U5: 0 | V5: 0 | W5: 0 | X5: 0 | Y5: 13 | Z5: 0 | AC5: =SUM(A5,C5,E5,G5,I5,K5,M5,O5,Q5,S5,U5,W5,Y5,AA5) -> 49 | AD5: =SUM(B5,D5,F5,H5,J5,L5,N5,P5,R5,T5,V5,X5,Z5,AB5) -> 0

Sheet Autres données
A1: Retour à l'accueil
A2: Données à collecter | D2: Valeurs
A3: Fonctionalité des services de la mairie | C3: Nombre de services prévus. | D3: 45
C4: Nombre de services fonctionnels | D4: 45
A5: Manuel de procédure | C5: Existence du manuel de procédure | D5: OUI
C6: Manuel de procédure actualisé. | D6: OUI
A7: Evaluation du personnel | C7: Nombre de personnes évalué | D7: 970
C8: Effectif du personnel | D8: 1040
A9: Adequation profil/poste | C9: Nombre de postes occupés dans la commune | D9: 144
C10: Nombre d'agents dont le profil correspond au poste occupé | D10: 144
A11: Données Foncieres | B11: Commission de Gestion foncière (COGEF) | C11: Existence de la COGEF | D11: OUI
C12: Nombre d'Attestation de Détention Coutumiere (ADC) demandé | D12: 0
C13: Nombre d'Attestation de Détention Coutumiere (ADC) traité | D13: 0
B14: Nombre de contentieux fonciers impliquant la commune | D14: 63
A15: Système d'information | C15: Existence d’un système de classement et d’archivage | D15: OUI
C16: Existence d’une personne en charge du classement des archivages | D16: OUI
C17: Existence d’un local dédié à l’archivage | D17: OUI
C18: Existence de documents archivés. | D18: OUI
A19: Nombre de délégations | C19: Nombre de délégations de signature pris. | D19: 0
A20: Attributions de pouvoir | C20: Nombre d'attributions de pouvoir pris. | D20: 0
A21: Séances de reddition de comptes | C21: Nombre de séances tenues | D21: 1
C22: Nombre de séances prévues. | D22: 2
A23: Activités spécifiques en faveur des femmes | C23: Nombre d’activités spécifiques réalisées en faveur des femmes | D23: 1
C24: Nombre d’activités réalisées dans le PTA | D24: 1
A25: Informations sur les prestations de la commune | C25: Existence d’un lieu publique dédié à l'informations sur les prestations de la commune | D25: OUI
C26: Existence d'une personne en charge de l'information | D26: OUI
A27: SDAC en cours de validité | C27: Existence ou non d'un SDAC | D27: NON
A28: PDC en cours de validité | C28: Existence ou non d’un PDC | D28: OUI
A29: Suivi évaluation des PTA/PAI/PAD | C29: Nombre de séances de suivi évaluation des PTA | D29: 4
C30: Nombre de séances de suivi évaluation des PAI | D30: 4
C31: Nombre de séances de suivi évaluation des PAD | D31: 0
A32: Infrastructures économiques et marchandes | C32: Nombre réalisées en année 2022 | D32: 0
C33: Nombre réalisées en année 2021 | D33: 0
A34: TBS | C34: Existence d’un TBS actualisé | D34: OUI
C35: Date d’actualisation | D35: 2021-01-01
A36: Coopération décentralisée | C36: Nombre d’accord actif | D36: 2
C37: Nombre d’activités réalisées provenants de ces accords | D37: 3

Sheet Marché
A1: Retour à l'accueil
A2: Type de commune | E2: Commune à statut particulier
A3: Plan de passation des marchés publics publiés | E3: OUI
A4: Nombre de marchés publics passés hors plan de passation des marchés | E4: 0
A5: Nombre de marchés conclus dans l'année | E5: 62
A6: Nombre de marchés conclus dans l’année ayant respecté les procédures | E6: 62
A7: Mode de passation | B7: Délai de passation | C7: Marché N°1 | E7: Marché N°2 | G7: Marché N°3 | I7: Marché N°4 | K7: Marché N°5 | M7: Marché N°6 | O7: Marché N°7 | Q7: Marché N°8 | S7: Marché N°9 | U7: Marché N°10 | W7: Marché N°11 | Y7: Marché N°12 | AA7: Marché N°13 | AC7: Marché N°14 | AE7: Marché N°15 | AG7: Marché N°16 | AI7: Marché N°17 | AK7: Marché N°18 | AM7: Marché N°19 | AO7: Marché N°20 | AQ7: Marché N°21 | AS7: Marché N°22 | AU7: Marché N°23 | AW7: Marché N°24 | AY7: Marché N°25 | BA7: Marché N°26 | BC7: Marché N°27 | BE7: Marché N°28 | BG7: Marché N°29 | BI7: Marché N°30 | BK7: Marché N°31 | BM7: Marché N°32 | BO7: Marché N°33 | BQ7: Marché N°34 | BS7: Marché N°35 | BU7: Marché N°36 | BW7: Marché N°37 | BY7: Marché N°38 | CA7: Marché N°39 | CC7: Marché N°40 | CE7: Marché N°41 | CG7: Marché N°42 | CI7: Marché N°43 | CK7: Marché N°44 | CM7: Marché N°45 | CO7: Marché N°46 | CQ7: Marché N°47 | CS7: Marché N°48 | CU7: Marché N°49 | CW7: Marché N°50 | CY7: Marché N°51 | DA7: Marché N°52 | DC7: Marché N°53 | DE7: Marché N°54 | DG7: Marché N°55 | DI7: Marché N°56 | DK7: Marché N°57 | DM7: Marché N°58 | DO7: Marché N°59 | DQ7: Marché N°60 | DS7: Marché N°61 | DU7: Marché N°62
C8: Construction de voies pavées ou bitumées (Renouvellement) | E8: Acquisition de fournitures de bureau au profit de la Mairie de Cotonou | G8: Acquisition de consommables informatiques au profit de la Mairie de Cotonou | I8: Acquisition de mobiliers de bureau au profit de la DEPP, RFU, 1ER, et 3eme Arrondissement guichet unique et autres bureaux | K8: Construction de CEG | M8: Accord-cadre pour l'entretien des espaces verts jardins monuments et places publiques (DRP) | O8: Acquisition de logiciels de gestion des ressources humaines | Q8: Acquisition des plans, mise en terre et entretien sur un an | S8: Acquisition et installation de dispositif de contrôle d'accès (logiciels de gestion de présence à la Mairie et dans les arrondissements) | U8: Construction de fosses individuelles au cimetière de Somè | W8: Prévention des risques et catastrophes naturelles | Y8: Traitement, conservation et mise à jour des archives centrales | AA8: Maintenance et mise à jour de logiciels de gestion financière et comptable | AC8: Prestation pour la mise à disposition d’ouvriers spécialisés et de manœuvres | AE8: Entretien des bâtiments administratifs | AG8: Acquisition de matériels et outillages au profit du service de l’adressage, DAJuF, DST et DEPP, de moto pompe à haut débit et d’équipements pour la mise en place de la radio (studio 1) | AI8: Acquisition de matériels et de fournitures au profit des enfants des écoles et collèges de Cotonou | AK8: Construction d’un pôle numérique de service | AM8: Installation, réhabilitation ou réfection des réseaux électriques alimentés en énergie solaire (acquisition et installation de lampadaires solaires dans la ville de Cotonou (Lot 1 et 2) | AO8: Organisation de fêtes et cérémonies au profit de la Mairie de Cotonou | AQ8: Installation et mise à jour du site internet de la Mairie de Cotonou (câblage du réseau internet) | AS8: Etude d’identification, de faisabilité économique et environnementale du projet de construction des toilettes publiques mobiles ou fixes dans la ville de Cotonou | AU8: Prix d’excellence aux apprenants | AW8: Travaux de réhabilitation des installations du réseau d'éclairage public de la ville de Cotonou pour la fête du 1er Août | AY8: Acquisition de fournitures de bureau et de diverses impressions dans le cadre du programme de la planification familiale et de la santé sexuelle (PF/SSRAJ) dans la ville de Cotonou | BA8: Construction de la gare routière de Hindé dans le 6ème arrondissement de Cotonou, lot 1 | BC8: Construction, reconstruction ou réfection des écoles primaires et maternelles, lot 4 | BE8: Construction, reconstruction ou réfection des écoles primaires et maternelles, lot 6 | BG8: Construction, reconstruction ou réfection des écoles primaires et maternelles, lot 7 | BI8: Construction, reconstruction ou réfection des écoles primaires et maternelles, lot 1 | BK8: Construction, reconstruction ou réfection des écoles primaires et maternelles, lot 2 | BM8: Acquisition de trois (3) pickup au profit de la DPM, SRPRNF et DST, de cinq (05) véhicules de type 4x4 au profit de l’exécutif, de six (06) véhicules de type 4x4 au profit des Présidents de commission et de deux(02) niveleuses, lot 2 | BO8: Réalisation des enquêtes fiscales au profit du Registre Foncier Urbain (RFU) de Cotonou | BQ8: Construction d'une unité de transformation de fruit et de légumes dans le magasin de stockage d'Akogbato au 12ème arrondissement de Cotonou | BS8: Entretien de voies en terre dans les arrondissements de Cotonou (1er au 8eme arrondissement de la ville de Cotonou: lot 1) | BU8: Construction, reconstruction de voies en terre dans les arrondissements de Cotonou (1er aux 9 ème arrondissements de la ville Cotonou : lot 1) | BW8: Acquisition de produits d’entretien au profit de la Mairie de Cotonou | BY8: Acquisition de 140 motos hommes pour les chefs quartiers, acquisition de 25 motos dames pour les chefs quartiers, acquisition de 16 motos à petits cylindrés et petits corps au profit de la DAJuF, DSEF, RFU, DEPP (SITeC), DST, PRMP, CCMP et acquisition de 20 motos gros cylindrés et gros corps au profit de la DPM | CA8: Acquisition d’équipements pour WEB TV et la mise en place de la Radio | CC8: Accord-cadre pour l’entretien des cimetières | CE8: Réhabilitation des espaces verts | CG8: Acquisition de matériels informatiques (lot 1 : ordinateurs) | CI8: Couverture sanitaire des autorités, responsables, conseillers municipaux et du personnel de la Mairie de Cotonou | CK8: Acquisition de fournitures scolaires, confection et multiplication des épreuves pour les TD dans les écoles et collèges de Cotonou | CM8: Réseau d'assainissement (construction d'ouvrages d'assainissement dans le premier arrondissement de Cotonou) | CO8: Achèvement des travaux de construction du siège du 6eme arrondissement | CQ8: Accord-cadre pour la gestion d'une plateforme ALLO MAIRIE pour renseigner les citoyens sur les formalités administratives et recueillir leurs avis et plaintes | CS8: Acquisition de matériels agricoles | CU8: Acquisition de valeurs inactives | CW8: Aménagement des aires de manifestations (lot 1 et 2) | CY8: Acquisition et pose d'équipements de signalisation (2 lots) | DA8: Acquisition de deux (02) PICKUP au profit des structures de la Mairie, de cinq (05) matériels automobiles au profit des responsables et du Trésorier Communal puis de deux (02) camions nacelles | DC8: Acquisition de chicanes et faisceaux métalliques | DE8: Réalisation des abris modernes pour les agents de la DPM au niveau des carrefours et pour les conducteurs de taxi-motos | DG8: Construction de bâtiment sanitaire lot 1 | DI8: Construction, reconstruction ou réfection des CEG (lot 1 et 2) | DK8: Recrutement d’un cabinet pour la formation du personnel de la Mairie de Cotonou | DM8: Acquisition de kits scolaires au profit des apprenants issus des couches sociales vulnérables et victimes de déguerpissement dans la ville de Cotonou | DO8: Sélection d'un cabinet chargé du recrutement du personnel de la radio municipale de Cotonou | DQ8: Sélection d'un prestataire chargé de l'illumination et embellissement de la ville de Cotonou au titre de l'année 2022 | DS8: Acquisition de vivres alimentaires au profit des centres sociaux de la ville de Cotonou | DU8: Acquisition de kits alimentaires au profit des victimes d'inondation dans la ville de Cotonou
B9: 86 | C9: Type de marchés publics | D9: Nombre de jours consacrés à la passation | E9: Type de marchés publics | F9: Nombre de jours consacrés à la passation | G9: Type de marchés publics | H9: Nombre de jours consacrés à la passation | I9: Type de marchés publics | J9: Nombre de jours consacrés à la passation | K9: Type de marchés publics | L9: Nombre de jours consacrés à la passation | M9: Type de marchés publics | N9: Nombre de jours consacrés à la passation | O9: Type de marchés publics | P9: Nombre de jours consacrés à la passation | Q9: Type de marchés publics | R9: Nombre de jours consacrés à la passation | S9: Type de marchés publics | T9: Nombre de jours consacrés à la passation | U9: Type de marchés publics | V9: Nombre de jours consacrés à la passation | W9: Type de marchés publics | X9: Nombre de jours consacrés à la passation | Y9: Type de marchés publics | Z9: Nombre de jours consacrés à la passation | AA9: Type de marchés publics | AB9: Nombre de jours consacrés à la passation | AC9: Type de marchés publics | AD9: Nombre de jours consacrés à la passation | AE9: Type de marchés publics | AF9: Nombre de jours consacrés à la passation | AG9: Type de marchés publics | AH9: Nombre de jours consacrés à la passation | AI9: Type de marchés publics | AJ9: Nombre de jours consacrés à la passation | AK9: Type de marchés publics | AL9: Nombre de jours consacrés à la passation | AM9: Type de marchés publics | AN9: Nombre de jours consacrés à la passation | AO9: Type de marchés publics | AP9: Nombre de jours consacrés à la passation | AQ9: Type de marchés publics | AR9: Nombre de jours consacrés à la passation | AS9: Type de marchés publics | AT9: Nombre de jours consacrés à la passation | AU9: Type de marchés publics | AV9: Nombre de jours consacrés à la passation | AW9: Type de marchés publics | AX9: Nombre de jours consacrés à la passation | AY9: Type de marchés publics | AZ9: Nombre de jours consacrés à la passation | BA9: Type de marchés publics | BB9: Nombre de jours consacrés à la passation | BC9: Type de marchés publics | BD9: Nombre de jours consacrés à la passation | BE9: Type de marchés publics | BF9: Nombre de jours consacrés à la passation | BG9: Type de marchés publics | BH9: Nombre de jours consacrés à la passation | BI9: Type de marchés publics | BJ9: Nombre de jours consacrés à la passation | BK9: Type de marchés publics | BL9: Nombre de jours consacrés à la passation | BM9: Type de marchés publics | BN9: Nombre de jours consacrés à la passation | BO9: Type de marchés publics | BP9: Nombre de jours consacrés à la passation | BQ9: Type de marchés publics | BR9: Nombre de jours consacrés à la passation | BS9: Type de marchés publics | BT9: Nombre de jours consacrés à la passation | BU9: Type de marchés publics | BV9: Nombre de jours consacrés à la passation | BW9: Type de marchés publics | BX9: Nombre de jours consacrés à la passation | BY9: Type de marchés publics | BZ9: Nombre de jours consacrés à la passation | CA9: Type de marchés publics | CB9: Nombre de jours consacrés à la passation | CC9: Type de marchés publics | CD9: Nombre de jours consacrés à la passation | CE9: Type de marchés publics | CF9: Nombre de jours consacrés à la passation | CG9: Type de marchés publics | CH9: Nombre de jours consacrés à la passation | CI9: Type de marchés publics | CJ9: Nombre de jours consacrés à la passation | CK9: Type de marchés publics | CL9: Nombre de jours consacrés à la passation | CM9: Type de marchés publics | CN9: Nombre de jours consacrés à la passation | CO9: Type de marchés publics | CP9: Nombre de jours consacrés à la passation | CQ9: Type de marchés publics | CR9: Nombre de jours consacrés à la passation | CS9: Type de marchés publics | CT9: Nombre de jours consacrés à la passation | CU9: Type de marchés publics | CV9: Nombre de jours consacrés à la passation | CW9: Type de marchés publics | CX9: Nombre de jours consacrés à la passation | CY9: Type de marchés publics | CZ9: Nombre de jours consacrés à la passation | DA9: Type de marchés publics | DB9: Nombre de jours consacrés à la passation | DC9: Type de marchés publics | DD9: Nombre de jours consacrés à la passation | DE9: Type de marchés publics | DF9: Nombre de jours consacrés à la passation | DG9: Type de marchés publics | DH9: Nombre de jours consacrés à la passation | DI9: Type de marchés publics | DJ9: Nombre de jours consacrés à la passation | DK9: Type de marchés publics | DL9: Nombre de jours consacrés à la passation | DM9: Type de marchés publics | DN9: Nombre de jours consacrés à la passation | DO9: Type de marchés publics | DP9: Nombre de jours consacrés à la passation | DQ9: Type de marchés publics | DR9: Nombre de jours consacrés à la passation | DS9: Type de marchés publics | DT9: Nombre de jours consacrés à la passation | DU9: Type de marchés publics | DV9: Nombre de jours consacrés à la passation
A10: Appel Offre Ouvert | B10: 46 | C10: Travaux | D10: 90 | AI10: Fournitures et Services | AJ10: 90 | AK10: Travaux | AL10: 90 | AM10: Travaux | AN10: 90 | AU10: Fournitures et Services | AV10: 90 | AW10: Travaux ( gré à gré) | AX10: 15 | BC10: Travaux | BD10: 90 | BE10: Travaux | BF10: 90 | BG10: Travaux | BH10: 90 | BI10: Travaux | BJ10: 90 | BK10: Travaux | BL10: 90 | BM10: Fournitures et Services | BN10: 90 | BO10: Prestation Intellectuelle | BP10: 120 | BS10: Travaux | BT10: 90 | BU10: Travaux | BV10: 90 | BY10: Fournitures et Services | BZ10: 90 | CG10: Fournitures et Services | CH10: 90 | CI10: Fournitures et Services | CJ10: 90 | CW10: Travaux | CX10: 90 | CY10: Fournitures et Services | CZ10: 120 | DA10: Fournitures et Services | DB10: 90 | DC10: Fournitures et Services | DD10: 90 | DI10: Travaux | DJ10: 90 | DM10: Fourniture (gré à gré) | DN10: 10 | DS10: Fourniture (gré à gré) | DT10: 15
A11: Demande de renseignement | B11: 27 | E11: Fournitures et Services | F11: 30 | G11: Fournitures et Services | H11: 30 | I11: Fournitures et Services | J11: 30 | K11: Travaux | L11: 30 | M11: Fournitures et Services | N11: 30 | S11: Fournitures et Services | T11: 30 | U11: Travaux | V11: 30 | Y11: Fournitures et Services | Z11: 30 | AA11: Fournitures et Services | AB11: 30 | AC11: Fournitures et Services | AD11: 30 | AE11: Fournitures et Services | AF11: 30 | AG11: Fournitures et Services | AH11: 30 | AO11: Fournitures et Services | AP11: 30 | AQ11: Travaux | AR11: 30 | AS11: Prestation intellectuelle réalisée par un cabinet | AT11: 30 | BA11: Travaux | BB11: 30 | BQ11: Travaux | BR11: 30 | BW11: Fournitures et Services | BX11: 30 | CA11: Fournitures et Services | CB11: 30 | CC11: Fournitures et Services | CD11: 30 | CE11: Travaux | CF11: 30 | CK11: Fournitures et Services | CL11: 30 | CM11: Travaux | CN11: 120 | CO11: Travaux | CP11: 30 | CQ11: Fournitures et Services | CR11: 30 | CU11: Fournitures et Services | CV11: 30 | DE11: Travaux | DF11: 120 | DG11: Travaux | DH11: 120 | DK11: Prestation intellectuelle réalisée par un cabinet | DL11: 30 | DQ11: Fournitures et Services | DR11: 30 | DU11: Fourniture (gré à gré) | DV11: 15
A12: Demande de cotation | B12: 65 | O12: Fournitures et Services | P12: 30 | Q12: Fournitures et Services | R12: 30 | W12: Fournitures et Services | X12: 30 | AY12: Fournitures et Services | AZ12: 30 | CS12: Fournitures et Services | CT12: 30 | DO12: Prestation intellectuelle réalisée par un cabinet | DP12: 30

Sheet Récapitulatif (hidden)
A1: Données à traiter | C1: Valeurs
A2: Nombre de sessions ordinaires tenues | C2: =COUNTA(CC!C6:C9) -> 3
A3: Nombre de services prévus. | C3: ='Autres données'!D3 -> 45
A4: Nombre de services existant doté en personnel. | C4: ='Autres données'!D4 -> 45
A5: Nombre d’élus du conseil communal | C5: =CC!D4 -> 49
A6: Nombre de conseillers présents à chaque conseil communal | C6: =SUMIF(CC!C6:C9,"<>",CC!B6:B9) -> 134
A7: Existence du manuel de procédure actualisé. | C7: =IF(OR('Autres données'!D5="NON",'Autres données'!D5=""),0,IF('Autres données'!D6="OUI",1,0.5)) -> 1
A8: Nombre de fiches d’évaluation du personnel évalué dans l’année. | C8: ='Autres données'!D7 -> 970
A9: Nombre de personnes à évaluer. | C9: ='Autres données'!D8 -> 1040
A10: Nombre de commissions permanentes existantes. | C10: =CP!C15 -> 0
A11: Nombre de sessions des commissions permamentes | C11: =SUM(CP!D15,CP!G15,CP!J15,CP!M15,CP!P15,CP!V15,CP!Y15,CP!AB15,CP!AE15,CP!AH15,CP!AK15) -> 0
A12: Nombre présents commission permanente | C12: =SUM(CP!D16,CP!G16,CP!J16,CP!M16,CP!P16,CP!V16,CP!Y16,CP!AB16,CP!AE16,CP!AH16,CP!AK16) -> 0
A13: Nombre de propositions formulées par les commissions permanentes | C13: =SUM(CP!E16,CP!H16,CP!K16,CP!N16,CP!Q16,CP!T16,CP!W16,CP!Z16,CP!AC16,CP!AF16,CP!AI16,CP!AL16) -> 0
A14: Nombre de propositions formulées par les commissions permanentes réalisées. | C14: =SUM(CP!F16,CP!I16,CP!L16,CP!O16,CP!R16,CP!U16,CP!X16,CP!AA16,CP!AD16,CP!AG16,CP!AJ16,CP!AM16) -> 0
A15: Nombre de postes occupés | C15: ='Autres données'!D9 -> 144
A16: Nombre de postes occupés correspondant au profil recherché | C16: ='Autres données'!D10 -> 144
A17: Existence ou non d’un système de documentation et d’archivage | C17: =IF('Autres données'!D15="OUI",1,0) -> 1
A18: Existence ou non d’une personne en charge de la documentation et d’archivage | C18: =IF('Autres données'!D16="OUI",1,0) -> 1
A19: Existence ou non d’un local dédié à la documentation et d’archivage | C19: =IF('Autres données'!D17="OUI",1,0) -> 1
A20: Existence ou non de document archivés. | C20: =IF('Autres données'!D18="OUI",1,0) -> 1
A21: Nombre de services publics susceptibles d’être délégués | C21: ='Services Délégués'!AC5 -> 49
A22: Nombre de services publics délégués dans l’année | C22: ='Services Délégués'!AD5 -> 0
A23: Nombre total de rapports produits dans l’année | C23: =COUNTIF(CC!F6:F9,"=OUI") -> 3
A24: Nombre total de rapports à produire dans l’année. | C24: =C2 -> 3 | D24: nombre de session dans l'année =4
A25: Nombre de réunions de la municipalité | C25: =CC!D3 -> 2
A26: Nombre de réunions prévues | C26: 12 | D26: limité à 12
A27: Nombre total de sessions de conseils d’arrondissement tenues au cours de l’année | C27: =SUM(CA!B3:B50) -> 198 | D27: somme dans CA
A28: Nombre d’arrondissements | C28: 13
A29: Nombre total de réunions de conseils de village tenues au cours de l’année | C29: =SUM(CV!C5:C100) -> 441 | D29: somme d&ns CV
A30: Nombre de villages | C30: 166
A31: Nombre de documents ou d’arrêtés portant délégation de signature pris. | C31: ='Autres données'!D19 -> 0
A32: Nombre de document ou arrêtés portant délégation de pouvoir pris. | C32: ='Autres données'!D20 -> 0
A33: Montant du budget prévisionnel | C33: =Budget!A5 -> 82444266814
A34: Montant du Budget Consommé | C34: =E37+C39 -> 17396363792
A35: Recette fiscales previsionnelles | C35: =Budget!C5 -> 65894529433
A36: Dépenses d'investissement | B36: Ressources propres | C36: =Budget!D5 -> 9168488883
B37: Investissement provenant de la coopération décentralisée | C37: =Budget!E5 -> 0 | E37: =SUM(C36:C38) -> 9168488883
B38: Autres ressources | C38: =Budget!F5 -> 0
A39: Dépenses totales de fonctionnement | C39: =Budget!G5 -> 8227874909
A40: Dépenses d'entretien des équipements et ouvrages | C40: =Budget!H5 -> 736582390
A41: Montant des ressources propres de l'année n-1 | C41: =Budget!K5 -> 18185791147
A42: Montant des ressources propres de l'année n | C42: =Budget!L5 -> 16273607353
A43: Recettes fiscales recouvrées | C43: =Budget!I5 -> 14493074261
A44: Montant des cotisations versées à échéance | C44: =Budget!M5 -> 17000000
A45: Montant des cotisations dues à échéance | C45: =Budget!N5 -> 0
A46: Nombre de marchés conclus dans l’année | C46: =Marché!E5 -> 62
A47: =[1]Marchés!A3 -> Plan de passation des marchés publics publiés | C47: =IF(Marché!E3="OUI",1,0) -> 1
A48: =[1]Marchés!A4:D4 -> Nombre de marchés publics passés hors plan de passation des marchés | C48: =Marché!E4 -> 0 | D48: =IF(Marché!E4="",0,IF(Marché!E4=0,1,0)) -> 1
A49: Nombre de marchés conclus dans l’année et ayant respecté les procédures. | C49: =Marché!E6 -> 62
A50: Délai moyen de passation des marchés publics communaux | C50: =IF(C46=0,0,D50/C46) -> 0 | D50: =SUM(Marché!$D$16:$XY$16) -> 0
A51: Nombre de fois où les relevés des délibérations affichés | C51: =COUNTA(CC!E6:E9) -> 3
A52: Délai d’affichage | C52: =SUM(CC!I6:I9)/C2 -> 1 | D52: 8 jours maxi aprs la fin de la session
A53: Nombre de séances de reddition de comptes | C53: ='Autres données'!D21 -> 1
A54: Nombre de séances de reddition de comptes prévus. | C54: ='Autres données'!D22 -> 2
A55: Nombre d’actions spécifiques réalisées en faveur des femmes | C55: ='Autres données'!D23 -> 1
A56: Nombre d’actions spécifiques réalisées dans le PTA | C56: ='Autres données'!D24 -> 1
A57: ='Autres données'!C25 -> Existence d’un lieu publique dédié à l'informations sur les prestations de la commune | C57: =IF('Autres données'!D25="OUI",1,0) -> 1
A58: ='Autres données'!C26 -> Existence d'une personne en charge de l'information | C58: =IF('Autres données'!D26="OUI",1,0) -> 1
A59: Nombre de cadres de concertation. | C59: =COUNTA('Cadres de Concertation'!F6:L6) -> 2 | D59: =IF(C59<=0,0,IF(C59>3,1,C59/4)) -> 0.5
A60: Nombre moyen de réunions du cadre de concertation tenu | C60: =SUM('Cadres de Concertation'!F6:L6)/C59 -> 1.5 | D60: =IF(C60<=0.5,0,IF(C60<1.5,0.25,IF(C60<2.5,0.5,IF(C60<4,0.75,1)))) -> 0.5
A61: Existence ou non d’un SDAC. | C61: =IF('Autres données'!D27="OUI",1,0) -> 0
A62: Existence ou non d’un PDC | C62: =IF('Autres données'!D28="OUI",1,0) -> 1
A63: Montant PAI prévision | C63: =Budget!C5 -> 65894529433
A64: Montant PAI réalisé | C64: =Budget!J5 -> 5813172809
A65: Nombre de séances de suivi évaluation des PTA/PAI/PAD | C65: =SUM('Autres données'!D29:D31) -> 8
A66: Nombre d’infrastructures économiques et marchandes réalisées en année n | C66: ='Autres données'!D32 -> 0
A67: Nombre d’infrastructures économiques et marchandes réalisées en année n-1 | C67: ='Autres données'!D33 -> 0
A68: Nombre d'EPC demandé (village) | C68: =SUM(CV!D5:D191) -> 0 | F68: somme
A69: Nombre d'EPC réalisé (Village) | C69: =SUM(CV!E5:E191) -> 0
A70: Nombre de ADC demandé (Commune-Autre données) | C70: ='Autres données'!D12 -> 0
A71: Nombre de ADC réalisé (Commune-Autre données) | C71: ='Autres données'!D13 -> 0
A72: Existence ou inexistence d’un tableau de bord social actualisé | C72: =IF('Autres données'!D34="OUI",1,0) -> 1
A73: Date d’actualisation du tableau de bord social | C73: ='Autres données'!D35 -> 2021-01-01
A74: Existence d'un tableau de bord | C74: ='Autres données'!D34 -> OUI
A75: Nombre d’ accord de coopération décentralisée. | C75: =IF('Autres données'!D36<1,0,IF('Autres données'!D36=1,0.5,1)) -> 1
A76: Nombre d’activités des accords de coopération décentralisées réalisées. | C76: =IF('Autres données'!D37<1,0,IF('Autres données'!D37<3,0.5,1)) -> 1
A77: Nombre de conflits fonciers impliquant la commune | C77: =IF('Autres données'!D14="","",'Autres données'!D14) -> 63 | D77: =IF(C77="",0,IF(C77=0,1,IF(C77<=3,0.75,IF(C77<=8,0.5,IF(C77<=15,0.25,0))))) -> 0
A78: Nombre de participation du maire ou de son représentant au CDCC au cours de l’année | C78: =COUNTIF(Tutelle!B5:B6,">0") -> 2 | D78: feuille tutelle (compter le nombre de lignes 5 ou 6 rempli
A79: Nombre de CDCC tenus dans l’année. | C79: =COUNTA(Tutelle!C5:C6) -> 2 | D79: fixer à 2
A80: Nombre total de présence du maire ou de ses adjoints au CDCC | C80: =SUMIF(Tutelle!C5:C6,"<>",Tutelle!B5:B6) -> 20
A81: Nombre total attendu (Maire et ses adjoints) pour toutes les sessions | C81: =C79*Tutelle!C3 -> 34
A82: Nombre d’actes communaux conformes en une année | C82: =Tutelle!D8 -> 63
A83: Nombre d’actes communaux soumis à la tutelle en un an | C83: =Tutelle!D9 -> 63
A84: Le budget est transmis ou pas. | C84: =IF(Tutelle!H2="TRANSMIS",1,0) -> 1
A85: Délai de transmission du budget après adoption par le conseil communal | C85: =IF(Budget!Q5="",0,IF(Budget!Q5<=DATE(Acceuil!P12,3,31),1,0)) -> 0
A86: Délai d'approbation du budget par la tutelle | C86: =IF(OR(Tutelle!H4="",Tutelle!H5=""),0,IF(Tutelle!H5<=EDATE(Tutelle!H4,1),1,0)) -> 1 | D86: si<1mois, 1, 0 sinon
A87: Le compte administratif est transmis ou pas. | C87: =IF(Tutelle!H6="TRANSMIS",1,0) -> 1
A88: Délai de transmission du compte administratif après adoption par le conseil communal | C88: =IF(Tutelle!H7="",0,IF(Tutelle!H7<=DATE(Acceuil!P12+1,6,30),1,0)) -> 1
A89: Délai d'approbation du compte administratif par la tutelle | C89: =IF(OR(Tutelle!H8="",Tutelle!H9=""),0,IF(Tutelle!H9<=EDATE(Tutelle!H8,1),1,0)) -> 1
A90: Nombre de réunions du cadre de concertation prévu (Mairie + SDE) | C90: ='Cadres de Concertation'!C5 -> 0
A91: Nombre de réunions du cadre de concertation tenu (Mairie + SDE) | C91: =COUNTA('Cadres de Concertation'!C7:C18) -> 0 | E91: =C91/C90 ->  | F91: =C92/C93 -> 
A92: Nombre total des membres présents (Mairie + SDE) | C92: =SUMIF('Cadres de Concertation'!C7:C18,"<>",'Cadres de Concertation'!B7:B18) -> 0
A93: Nombre total des membres attendus (Mairie + SDE) | C93: ='Cadres de Concertation'!C4*Récapitulatif!C91 -> 0

Sheet Indicateurs (hidden)
A1: D1 | B1: 1 | C1: Taux de realisation des sessions ordinaires du conseil communal | D1: =Récapitulatif!C2/4 -> 0.75
B2: 2 | C2: Taux de services fonctionnels | D2: =Récapitulatif!C4/Récapitulatif!C3 -> 1
B3: 3 | C3: Taux de participation des élus aux conseils communaux | D3: =Récapitulatif!C6/(Récapitulatif!C5*Récapitulatif!C2) -> 0.9115646259
B4: 4 | C4: Existance d'un manuel de procedure à jour | D4: =Récapitulatif!C7 -> 1
B5: 5 | C5: Taux de personnes évaluées | D5: =Récapitulatif!C8/Récapitulatif!C9 -> 0.9326923077
B6: 6 | C6: Taux de commissions permanentes fonctionnelles | D6: =((Récapitulatif!C11/Récapitulatif!C10)+(Récapitulatif!C12/CP!AP15)+(Récapitulatif!C14/Récapitulatif!C13))/3 -> 
B7: 7 | C7: Taux d'adéquation profil/poste | D7: =Récapitulatif!C16/Récapitulatif!C15 -> 1
B8: 8 | C8: Fonctionalité du système de classement et d'archivage | D8: =SUM(Récapitulatif!C17:C20)/4 -> 1
B9: 9 | C9: Taux de services publics locaux en gestion déléguée | D9: =Récapitulatif!C22/Récapitulatif!C21 -> 0
B10: 10 | C10: Taux de realisation des rapports d'activités du maire | D10: =Récapitulatif!C23/Récapitulatif!C24 -> 1
B11: 11 | C11: Taux de tenu des reunions de municipalité | D11: =Récapitulatif!C25/Récapitulatif!C26 -> 0.1666666667
B12: 12 | C12: Taux moyen de tenue des sessions du conseil d'arrondissement | D12: =Récapitulatif!C27/Récapitulatif!C28 -> 15.23076923
B13: 13 | C13: Taux moyen de tenue des sessions du conseil de villages | D13: =Récapitulatif!C29/Récapitulatif!C30 -> 2.656626506
B14: 14 | C14: Nombre de délégation de signature du maire aux adjoints | D14: =Récapitulatif!C31 -> 0
B15: 15 | C15: Nombre de délégation de pouvoir éffectué par le maire | D15: =Récapitulatif!C32 -> 0
A16: D2 | B16: 1 | C16: Taux d'éxecution du budget communal | D16: =Récapitulatif!C34/Récapitulatif!C33 -> 0.2110075626
B17: 2 | C17: Taux d'autofinancement des Investissements | D17: =Récapitulatif!C36/Récapitulatif!E37 -> 1
B18: 3 | C18: Part des Investissements dans les dépenses totales de la commune | D18: =Récapitulatif!E37/Récapitulatif!C34 -> 0.5270347868
B19: 4 | C19: Part des dépenses d'entretien des équipements et ouvrages dans les depenses de fonctionnement | D19: =Récapitulatif!C40/Récapitulatif!C39 -> 0.0895227988
B20: 5 | C20: Adoption du budget dans les délais | D20: =IF(Tutelle!H3="",0,IF(Tutelle!H3<DATE(Acceuil!P12,1,1),1,0)) -> 1
B21: 6 | C21: Respect du délai de vote du compte administratif | D21: =IF(Tutelle!H7="",0,IF(Tutelle!H7<=DATE(Acceuil!P12,6,30),1,0)) -> 1
B22: 7 | C22: Taux d'accroissement des ressources propres | D22: =(Récapitulatif!C42-Récapitulatif!C41)/Récapitulatif!C41 -> -0.1051471326
B23: 8 | C23: Taux de recouvrement fiscal | D23: =Récapitulatif!C43/Récapitulatif!C35 -> 0.2199435125
B24: 9 | C24: délai moyen de passation des marchés publics communaux | D24: =Récapitulatif!C50/Récapitulatif!C46 -> 0
B25: 10 | C25: Existance des plans de passation des marchés validés et publiés | D25: =(Récapitulatif!C47+Récapitulatif!D48)/2 -> 1
B26: 11 | C26: Ratio des marchés publics ayant respecté les procédures | D26: =Récapitulatif!C49/Récapitulatif!C46 -> 1
A27: D3 | B27: 1 | C27: Affichage des relevés des décisions du Conseil Communal dans les délai | D27: =((Récapitulatif!C51/Récapitulatif!C2)+Récapitulatif!C52)/2 -> 1
B28: 2 | C28: Taux de réalisation des seances de reddition de compte | D28: =Récapitulatif!C53/Récapitulatif!C54 -> 0.5
B29: 3 | C29: Nombre d'actions spécifiques en faveur des femmes au cours de l'année | D29: =Récapitulatif!C55/Récapitulatif!C56 -> 1
B30: 4 | C30: Existance d'un mecanisme d'information du public par rapport aux prestations de la commune | D30: =(Récapitulatif!C57+Récapitulatif!C58)/2 -> 1
B31: 5 | C31: Nombre de cadre de concertation fonctionnel | D31: =(Récapitulatif!D59+Récapitulatif!D60)/2 -> 0.5
A32: D4 | B32: 1 | C32: Existance d'un SDAC | D32: =Récapitulatif!C61 -> 0
B33: 2 | C33: Existance d'un PDC | D33: =(Récapitulatif!C62+(Récapitulatif!C64/Récapitulatif!C63))/2 -> 0.5441096769
B34: 3 | C34: Nombre de reunions de suivi-évaluation du PTA/PAI/PAD | D34: =Récapitulatif!C65 -> 8
B35: 4 | C35: Taux d'accroissement des infrastructures économiques et marchandes | D35: =(Récapitulatif!C66-Récapitulatif!C67)/Récapitulatif!C67 -> 
B36: 5 | C36: Fonctionalité des organes de gestion fonciere aux niveaux communal et infra communal | D36: =((Récapitulatif!C69/Récapitulatif!C68)+(Récapitulatif!C71/Récapitulatif!C70))/2 -> 
B37: 6 | C37: Existance d'un tableau de bord social actualisé | D37: =Récapitulatif!C72 -> 1
B38: 7 | C38: Nombre d'accord de cooperation decentralisée mise en œuvre | D38: =(Récapitulatif!C75+Récapitulatif!C76)/2 -> 1
B39: 8 | C39: Taux de paiement des cotisations de la commune à l'intercommunalité | D39: =IF(Récapitulatif!C45=0,0,Récapitulatif!C44/Récapitulatif!C45) -> 0
B40: 9 | C40: Nombre de contentieux fonciers impliquant la Mairie | D40: =Récapitulatif!D77 -> 0
A41: D5 | B41: 1 | C41: Nombre de participations au CDCC | D41: =((Récapitulatif!C78/Récapitulatif!C79)+(Récapitulatif!C80/Récapitulatif!C81))/2 -> 0.7941176471
B42: 2 | C42: Taux de conformité des actes communaux | D42: =IF(Récapitulatif!C83=0,0,Récapitulatif!C82/Récapitulatif!C83) -> 1
B43: 3 | C43: Transmission du budget dans les délais | D43: =SUM(Récapitulatif!C84:C86)/3 -> 0.6666666667
B44: 4 | C44: Transmission du compte administratif dans les délais | D44: =SUM(Récapitulatif!C87:C89)/3 -> 1
B45: 5 | C45: Animation d'un cadre de concertation entre le maire et les services déconcentrés communaux | D45: =(Récapitulatif!E91+Récapitulatif!F91)/2 -> 
